[Event "Turkish Youth Championship 2024"]
[Site "Samsun"]
[Date "2024.05.21"]
[Round "5"]
[White "Yogurtcuoglu, Cagan"]
[Black "Buyuk, Eymen Eren"]
[Result "1-0"]
[ECO "D46"]
[WhiteElo "1714"]
[BlackElo "1999"]
[Annotator "RC"]
[PlyCount "115"]
[EventDate "2024.05.18"]
[EventType "swiss"]
[EventCountry "TUR"]
[SourceTitle "playchess.com"]
[Source "ChessBase"]
[SourceQuality "1"]
[TimeControl "5400+30"]

1. d4 {[%emt 0:01:00]} d5 {[%emt 0:01:00]} 2. c4 {[%emt 0:00:30]} c6 {[%emt 0:00:00]} 3. Nc3 {[%emt 0:00:00]} Nf6 {[%emt 0:00:00]} 4. Nf3 {[%emt 0:00:00]} e6 {[%emt 0:00:30]} 5. e3 {[%emt 0:00:00]} Bd6 {[%emt 0:00:30]} 6. Qc2 {[%emt 0:00:00]} Nbd7 {[%emt 0:00:00]} 7. Bd3 {[%emt 0:00:30]} O-O {[%emt 0:00:00]} 8. O-O {[%emt 0:00:00]} b6 {[%emt 0:02:30]} 9. e4 {[%emt 0:00:00]} dxc4 {[%emt 0:00:30]} 10. Bxc4 {[%emt 0:02:30]} e5 {[%emt 0:00:30]} 11. Rd1 {[%emt 0:10:30]} Qc7 {[%emt 0:07:30]} 12. h3 {[%emt 0:05:30]} Bb7 {[%emt 0:05:30]} 13. Bg5 {[%emt 0:08:30]} h6 {[%emt 0:08:30]} 14. Be3 {[%emt 0:08:30]} b5 {[%emt 0:10:30]} 15. Bb3 {[%emt 0:03:30]} a6 {[%emt 0:01:30]} 16. a4 {[%emt 0:05:30]} Rac8 {[%emt 0:05:30]} 17. Rac1 {[%emt 0:06:30]} exd4 {[%emt 0:06:30]} 18. Bxd4 {[%emt 0:00:00]} Bf4 {[%emt 0:04:30]} 19. Ra1 {[%emt 0:00:00]} b4 {[%emt 0:01:30]} 20. Ne2 {[%emt 0:00:30]} c5 {[%emt 0:00:30]} 21. Bxf6 {[%emt 0:00:30]} Nxf6 {[%emt 0:00:30]} 22. Bd5 {[%emt 0:01:30]} Nxd5 {[%emt 0:00:30]} 23. exd5 {[%emt 0:00:30]} Bd6 {[%emt 0:00:00]} 24. Qc4 {[%emt 0:00:30]} Rfe8 {[%emt 0:00:00]} 25. Rd2 {[%emt 0:01:30]} a5 {[%emt 0:01:30]} 26. Rad1 {[%emt 0:03:30]} Qd7 {[%emt 0:04:30]} 27. Ng3 {[%emt 0:02:30]} Bxg3 {[%emt 0:02:30]} 28. fxg3 {[%emt 0:00:30]} Qxa4 {[%emt 0:00:30]} 29. g4 {[%emt 0:00:30]} Qd7 {[%emt 0:03:30]} 30. g5 {[%emt 0:00:30]} hxg5 {[%emt 0:07:30]} 31. Nxg5 {[%emt 0:00:30]} Re5 {[%emt 0:00:30]} 32. h4 {[%emt 0:02:30]} Rd8 {[%emt 0:09:46]} 33. d6 {[%emt 0:01:30]} Rde8 {[%emt 0:00:13]} 34. Rf1 {[%emt 0:05:30]} Rf5 {[%emt 0:01:39]} 35. Rxf5 {[%emt 0:00:30]} Qxf5 {[%emt 0:00:30]} 36. d7 {[%emt 0:00:00]} Rd8 {[%emt 0:02:13]} 37. g4 {[%emt 0:13:00]} Qb1+ {[%emt 0:03:20]} 38. Kf2 {[%emt 0:00:00]} Bc6 {[%emt 0:05:54]} 39. Qxf7+ {[%emt 0:01:00]} Kh8 {[%emt 0:00:01]} 40. Ne6 {[%emt 0:00:46]} Qh7 {[%emt 0:00:54]} 41. Nxd8 {[%emt 0:01:44]} Qxh4+ {[%emt 0:00:09]} 42. Ke2 {[%emt 0:03:37]} Qxg4+ {[%emt 0:03:07]} 43. Ke1 {[%emt 0:00:26]} Qh4+ {[%emt 0:02:07]} 44. Rf2 {[%emt 0:03:04]} Qe4+ {[%emt 0:01:16]} 45. Re2 {[%emt 0:00:28]} Qh4+ {[%emt 0:00:45]} 46. Qf2 {[%emt 0:01:04]} Qh1+ {[%emt 0:00:35]} 47. Kd2 {[%emt 0:00:05]} Qd5+ {[%emt 0:00:00]} 48. Kc1 {[%emt 0:00:56]} Bxd7 {[%emt 0:00:00]} 49. Nf7+ {[%emt 0:01:57]} Kg8 {[%emt 0:00:03]} 50. Ne5 {[%emt 0:00:49]} Ba4 {[%emt 0:00:09]} 51. Re1 {[%emt 0:01:07]} Qa2 {[%emt 0:00:33]} 52. Nd3 {[%emt 0:00:55]} c4 {[%emt 0:00:55]} 53. Rf1 {[%emt 0:02:03]} cxd3 {[%emt 0:02:54]} 54. Qf8+ {[%emt 0:00:32]} Kh7 {[%emt 0:00:04]} 55. Rh1+ {[%emt 0:00:08]} Kg6 {[%emt 0:00:30]} 56. Rg1+ {[%emt 0:00:00]} Kh5 {[%emt 0:00:07]} 57. Qf5+ {[%emt 0:00:00]} Kh6 {[%emt 0:00:00]} 58. Qg6# {[%emt 0:00:31]} 1-0

[Event "Turkish Youth Championship 2024"]
[Site "Samsun"]
[Date "2024.05.21"]
[Round "5"]
[White "Tonoglu, Engin Erdem"]
[Black "Ozer, Yigit Eren"]
[Result "1/2-1/2"]
[ECO "C78"]
[WhiteElo "1691"]
[BlackElo "1519"]
[Annotator "NA RC"]
[PlyCount "89"]
[EventDate "2024.05.18"]
[EventType "swiss"]
[EventCountry "TUR"]
[SourceTitle "playchess.com"]
[Source "ChessBase"]
[SourceQuality "1"]
[TimeControl "5400+30"]

1. e4 {[%emt 0:04:00]} e5 {[%emt 0:01:00]} 2. Nf3 {[%emt 0:00:30]} Nc6 {[%emt 0:00:00]} 3. Bb5 {[%emt 0:00:30]} a6 {[%emt 0:00:00]} 4. Ba4 {[%emt 0:00:00]} Nf6 {[%emt 0:00:00]} 5. O-O {[%emt 0:00:00]} b5 {[%emt 0:00:00]} 6. Bb3 {[%emt 0:00:00]} Bc5 {[%emt 0:00:30]} 7. d3 {[%emt 0:01:00]} h6 {[%emt 0:01:30]} 8. Be3 {[%emt 0:07:30]} Bxe3 {[%emt 0:12:30]} 9. fxe3 {[%emt 0:00:00]} d6 {[%emt 0:00:30]} 10. Nc3 {[%emt 0:03:00]} Na5 {[%emt 0:01:30]} 11. Nd5 {[%emt 0:03:30]} Nxb3 {[%emt 0:24:30]} 12. axb3 {[%emt 0:00:30]} Nxd5 {[%emt 0:01:30]} 13. exd5 {[%emt 0:00:30]} c6 {[%emt 0:00:30]} 14. dxc6 {[%emt 0:02:30]} Qb6 {[%emt 0:00:30]} 15. d4 {[%emt 0:01:30]} e4 {[%emt 0:05:30]} 16. Nd2 {[%emt 0:00:30]} Qxc6 {[%emt 0:00:30]} 17. c4 {[%emt 0:00:00]} O-O {[%emt 0:05:30]} 18. Qe2 {[%emt 0:04:00]} f5 {[%emt 0:02:30]} 19. cxb5 {[%emt 0:05:30]} axb5 {[%emt 0:00:30]} 20. Rxa8 {[%emt 0:08:30]} Qxa8 {[%emt 0:00:30]} 21. Rc1 {[%emt 0:02:30]} Qb7 {[%emt 0:04:30]} 22. Nb1 {[%emt 0:03:30]} Bd7 {[%emt 0:12:30]} 23. b4 {[%emt 0:08:30]} f4 {[%emt 0:11:18]} 24. exf4 {[%emt 0:00:00]} Rxf4 {[%emt 0:00:22]} 25. Qe3 {[%emt 0:00:00]} Rf6 {[%emt 0:00:26]} 26. Nc3 {[%emt 0:00:30]} Bc6 {[%emt 0:00:33]} 27. Ne2 {[%emt 0:05:30]} d5 {[%emt 0:01:44]} 28. Ng3 {[%emt 0:06:30]} Qd7 {[%emt 0:01:23]} 29. Nh5 {[%emt 0:01:30]} Rf7 {[%emt 0:01:25]} 30. Nf4 {[%emt 0:03:30]} Qg4 {[%emt 0:03:46]} 31. Rf1 {[%emt 0:11:13]} g5 {[%emt 0:01:23]} 32. Ne2 {[%emt 0:00:00]} Rxf1+ {[%emt 0:06:29]} 33. Kxf1 {[%emt 0:00:17]} Kf7 {[%emt 0:00:30]} 34. h3 {[%emt 0:00:30]} Qf5+ {[%emt 0:00:30]} 35. Qf2 {[%emt 0:00:30]} Qxf2+ {[%emt 0:00:30]} 36. Kxf2 {[%emt 0:00:30]} h5 {[%emt 0:00:30]} 37. g4 {[%emt 0:00:30]} Bd7 {[%emt 0:00:30]} 38. Kg3 {[%emt 0:00:30]} h4+ {[%emt 0:00:30]} 39. Kf2 {[%emt 0:00:30]} Ke6 {[%emt 0:00:30]} 40. Nc3 {[%emt 0:00:30]} Kd6 {[%emt 0:00:30]} 41. Nd1 {[%emt 0:00:30]} Ke7 {[%emt 0:00:30]} 42. Ne3 {[%emt 0:00:30]} Kd6 {[%emt 0:00:30]} 43. Nd1 {[%emt 0:00:30]} Ke7 {[%emt 0:00:30]} 44. Ne3 {[%emt 0:00:30]} Kd6 {[%emt 0:00:34]} 45. Nd1 {[%emt 0:00:30]} 1/2-1/2

[Event "Turkish Youth Championship 2024"]
[Site "Samsun"]
[Date "2024.05.21"]
[Round "5"]
[White "Incecinar, Abdullah Mete"]
[Black "Topuz, Mirac Melih"]
[Result "1/2-1/2"]
[ECO "B47"]
[WhiteElo "1643"]
[BlackElo "2079"]
[Annotator "RC"]
[PlyCount "60"]
[EventDate "2024.05.18"]
[EventType "swiss"]
[EventCountry "TUR"]
[SourceTitle "playchess.com"]
[Source "ChessBase"]
[SourceQuality "1"]
[TimeControl "5400+30"]

1. e4 {[%emt 0:01:00]} c5 {[%emt 0:01:00]} 2. Nf3 {[%emt 0:00:30]} Nc6 {[%emt 0:00:00]} 3. d4 {[%emt 0:00:00]} cxd4 {[%emt 0:00:00]} 4. Nxd4 {[%emt 0:00:00]} Qc7 {[%emt 0:00:30]} 5. Nc3 {[%emt 0:00:00]} e6 {[%emt 0:00:00]} 6. Qd3 {[%emt 0:00:00]} a6 {[%emt 0:01:00]} 7. Nxc6 {[%emt 0:00:00]} bxc6 {[%emt 0:01:30]} 8. Qg3 {[%emt 0:00:00]} Qxg3 {[%emt 0:03:30]} 9. hxg3 {[%emt 0:00:30]} d5 {[%emt 0:00:00]} 10. Bd3 {[%emt 0:03:30]} Bc5 {[%emt 0:04:00]} 11. exd5 {[%emt 0:14:30]} exd5 {[%emt 0:00:30]} 12. Bf4 {[%emt 0:05:30]} Ne7 {[%emt 0:01:30]} 13. f3 {[%emt 0:03:30]} Bb4 {[%emt 0:13:30]} 14. O-O-O {[%emt 0:03:30]} Bxc3 {[%emt 0:01:30]} 15. bxc3 {[%emt 0:00:30]} Bf5 {[%emt 0:22:30]} 16. Bxf5 {[%emt 0:03:30]} Nxf5 {[%emt 0:01:30]} 17. c4 {[%emt 0:03:30]} O-O-O {[%emt 0:04:30]} 18. cxd5 {[%emt 0:03:30]} Rxd5 {[%emt 0:00:30]} 19. Rxd5 {[%emt 0:00:30]} cxd5 {[%emt 0:00:30]} 20. Re1 {[%emt 0:00:30]} Kd7 {[%emt 0:00:30]} 21. g4 {[%emt 0:05:30]} Ne7 {[%emt 0:00:30]} 22. Re3 {[%emt 0:00:30]} Rc8 {[%emt 0:01:30]} 23. Rb3 {[%emt 0:02:30]} Rc6 {[%emt 0:07:30]} 24. Kd2 {[%emt 0:02:30]} Rc8 {[%emt 0:01:30]} 25. Kd3 {[%emt 0:00:30]} Rc6 {[%emt 0:00:30]} 26. Rb7+ {[%emt 0:00:30]} Ke6 {[%emt 0:00:30]} 27. Bg3 {[%emt 0:00:30]} h6 {[%emt 0:00:30]} 28. Bh4 {[%emt 0:00:30]} Ng6 {[%emt 0:00:30]} 29. Bg3 {[%emt 0:00:30]} Ne7 {[%emt 0:00:30]} 30. Bh4 {[%emt 0:00:00]} Ng6 {[%emt 0:00:30]} 1/2-1/2

[Event "Turkish Youth Championship 2024"]
[Site "Samsun"]
[Date "2024.05.21"]
[Round "5"]
[White "Cecen, Kuay Kam"]
[Black "Ekinci, Berkay"]
[Result "0-1"]
[ECO "D02"]
[WhiteElo "1642"]
[BlackElo "1891"]
[Annotator "NA RC"]
[PlyCount "56"]
[EventDate "2024.05.18"]
[EventType "swiss"]
[EventCountry "TUR"]
[SourceTitle "playchess.com"]
[Source "ChessBase"]
[SourceQuality "1"]
[TimeControl "5400+30"]

1. d4 {[%emt 0:01:00]} Nf6 {[%emt 0:01:00]} 2. Nf3 {[%emt 0:00:30]} e6 {[%emt 0:00:30]} 3. Bf4 {[%emt 0:00:00]} d5 {[%emt 0:00:30]} 4. e3 {[%emt 0:00:00]} Bd6 {[%emt 0:00:00]} 5. Ne5 {[%emt 0:00:30]} O-O {[%emt 0:02:00]} 6. Bd3 {[%emt 0:02:30]} c5 {[%emt 0:00:30]} 7. c3 {[%emt 0:00:00]} Nc6 {[%emt 0:01:30]} 8. Nd2 {[%emt 0:02:00]} Qc7 {[%emt 0:05:30]} 9. Ndf3 {[%emt 0:00:00]} Ne4 {[%emt 0:02:30]} 10. Qc2 {[%emt 0:15:00]} cxd4 {[%emt 0:17:30]} 11. cxd4 {[%emt 0:13:30]} Qa5+ {[%emt 0:03:30]} 12. Kf1 {[%emt 0:01:30]} Nb4 {[%emt 0:01:30]} 13. Qb3 {[%emt 0:00:30]} f6 {[%emt 0:02:30]} 14. Ng4 {[%emt 0:13:30]} h5 {[%emt 0:05:30]} 15. Bxd6 {[%emt 0:18:30]} Nxd6 {[%emt 0:01:30]} 16. Bg6 {[%emt 0:04:30]} hxg4 {[%emt 0:00:30]} 17. Qd1 {[%emt 0:01:30]} Nf5 {[%emt 0:13:30]} 18. h4 {[%emt 0:09:18]} Qb5+ {[%emt 0:01:30]} 19. Kg1 {[%emt 0:01:01]} Qd3 {[%emt 0:00:30]} 20. Nd2 {[%emt 0:01:19]} Bd7 {[%emt 0:04:30]} 21. h5 {[%emt 0:05:01]} g3 {[%emt 0:00:30]} 22. h6 {[%emt 0:02:54]} gxf2+ {[%emt 0:00:30]} 23. Kh2 {[%emt 0:00:04]} Qxe3 {[%emt 0:00:30]} 24. Bxf5 {[%emt 0:01:02]} exf5 {[%emt 0:00:30]} 25. Qh5 {[%emt 0:00:51]} Qxd2 {[%emt 0:01:30]} 26. hxg7 {[%emt 0:00:29]} Kxg7 {[%emt 0:01:30]} 27. g4 {[%emt 0:01:23]} f1=Q+ {[%emt 0:00:30]} 28. Kg3 {[%emt 0:00:03]} Qfg2+ {[%emt 0:00:00]} 0-1

[Event "Turkish Youth Championship 2024"]
[Site "Samsun"]
[Date "2024.05.21"]
[Round "5"]
[White "Kozan, Hayreddin"]
[Black "Zeyrek, Ayaz"]
[Result "1/2-1/2"]
[ECO "B33"]
[WhiteElo "1600"]
[BlackElo "1750"]
[Annotator "NA RC"]
[PlyCount "117"]
[EventDate "2024.05.18"]
[EventType "swiss"]
[EventCountry "TUR"]
[SourceTitle "playchess.com"]
[Source "ChessBase"]
[SourceQuality "1"]
[TimeControl "5400+30"]

1. e4 {[%emt 0:01:00]} c5 {[%emt 0:01:00]} 2. Nf3 {[%emt 0:00:30]} Nc6 {[%emt 0:00:30]} 3. d4 {[%emt 0:00:30]} cxd4 {[%emt 0:00:00]} 4. Nxd4 {[%emt 0:00:00]} Nf6 {[%emt 0:00:00]} 5. Nc3 {[%emt 0:00:00]} e5 {[%emt 0:00:00]} 6. Ndb5 {[%emt 0:00:00]} d6 {[%emt 0:00:00]} 7. Bg5 {[%emt 0:00:00]} a6 {[%emt 0:00:30]} 8. Na3 {[%emt 0:00:00]} b5 {[%emt 0:00:30]} 9. Bxf6 {[%emt 0:00:00]} gxf6 {[%emt 0:00:30]} 10. Nd5 {[%emt 0:00:00]} Bg7 {[%emt 0:00:30]} 11. g3 {[%emt 0:00:00]} O-O {[%emt 0:01:30]} 12. c3 {[%emt 0:00:00]} Ne7 {[%emt 0:01:30]} 13. Bg2 {[%emt 0:04:00]} Nxd5 {[%emt 0:02:30]} 14. Qxd5 {[%emt 0:00:30]} Be6 {[%emt 0:00:30]} 15. Qd3 {[%emt 0:00:30]} Qd7 {[%emt 0:04:30]} 16. Nc2 {[%emt 0:05:30]} Rac8 {[%emt 0:06:30]} 17. Ne3 {[%emt 0:04:30]} Bc4 {[%emt 0:01:30]} 18. Nxc4 {[%emt 0:02:30]} bxc4 {[%emt 0:00:00]} 19. Qc2 {[%emt 0:02:30]} Rc5 {[%emt 0:01:00]} 20. Rd1 {[%emt 0:14:30]} Rb8 {[%emt 0:03:30]} 21. O-O {[%emt 0:04:30]} Ra5 {[%emt 0:02:30]} 22. a3 {[%emt 0:08:30]} Bf8 23. Rd5 {[%emt 0:09:30]} Qa4 {[%emt 0:12:00]} 24. Qxa4 {[%emt 0:04:30]} Rxa4 {[%emt 0:00:00]} 25. Rd2 {[%emt 0:00:30]} Ra5 {[%emt 0:02:00]} 26. Re1 {[%emt 0:09:30]} Be7 {[%emt 0:02:30]} 27. Bf1 {[%emt 0:02:30]} Rc5 {[%emt 0:01:30]} 28. h4 {[%emt 0:04:30]} Kf8 {[%emt 0:03:30]} 29. Rd5 {[%emt 0:04:30]} Rxd5 {[%emt 0:04:30]} 30. exd5 {[%emt 0:00:00]} Rxb2 {[%emt 0:00:00]} 31. Bxc4 {[%emt 0:00:00]} a5 {[%emt 0:00:00]} 32. a4 {[%emt 0:01:30]} Bd8 {[%emt 0:02:30]} 33. Re3 {[%emt 0:06:21]} Bb6 {[%emt 0:01:30]} 34. Rf3 {[%emt 0:00:53]} Ke7 {[%emt 0:00:30]} 35. Bb5 {[%emt 0:06:24]} h6 {[%emt 0:03:30]} 36. c4 {[%emt 0:00:39]} Bc5 {[%emt 0:01:30]} 37. Rf5 {[%emt 0:01:32]} Rb3 {[%emt 0:02:30]} 38. Kg2 {[%emt 0:00:35]} Rb2 {[%emt 0:02:30]} 39. Kg1 {[%emt 0:00:34]} Rd2 {[%emt 0:00:30]} 40. Rf3 {[%emt 0:00:22]} Bd4 {[%emt 0:04:30]} 41. Kf1 {[%emt 0:01:07]} Rd1+ {[%emt 0:01:30]} 42. Kg2 {[%emt 0:01:35]} Re1 {[%emt 0:00:30]} 43. Bc6 {[%emt 0:01:45]} e4 {[%emt 0:01:30]} 44. Rf5 {[%emt 0:02:11]} Rc1 {[%emt 0:01:30]} 45. Bb5 {[%emt 0:00:26]} Be5 {[%emt 0:00:00]} 46. Rh5 {[%emt 0:01:28]} Rc2 {[%emt 0:00:00]} 47. Kf1 {[%emt 0:00:44]} Kf8 {[%emt 0:03:30]} 48. g4 {[%emt 0:00:48]} Kg7 {[%emt 0:02:30]} 49. Rf5 {[%emt 0:00:26]} Kg6 {[%emt 0:01:30]} 50. Ba6 {[%emt 0:00:34]} Rc3 {[%emt 0:01:30]} 51. Kg2 {[%emt 0:00:01]} Rc1 {[%emt 0:00:30]} 52. Bb5 {[%emt 0:00:08]} Re1 {[%emt 0:00:30]} 53. Ba6 {[%emt 0:00:51]} Bd4 {[%emt 0:01:30]} 54. Rf4 {[%emt 0:00:25]} h5 {[%emt 0:01:30]} 55. c5 {[%emt 0:00:47]} Be5 {[%emt 0:01:30]} 56. Rxe4 {[%emt 0:00:03]} Rxe4 {[%emt 0:00:30]} 57. Bd3 {[%emt 0:00:02]} dxc5 {[%emt 0:01:30]} 58. Bxe4+ {[%emt 0:00:05]} Kh6 {[%emt 0:00:00]} 59. f3 {[%emt 0:00:16]} 1/2-1/2

[Event "Turkish Youth Championship 2024"]
[Site "Samsun"]
[Date "2024.05.21"]
[Round "5"]
[White "Duygulu, Ugur"]
[Black "Kalyoncu, Beren"]
[Result "0-1"]
[ECO "C02"]
[WhiteElo "1585"]
[BlackElo "1737"]
[Annotator "NA RC"]
[PlyCount "118"]
[EventDate "2024.05.18"]
[EventType "swiss"]
[EventCountry "TUR"]
[SourceTitle "playchess.com"]
[Source "ChessBase"]
[SourceQuality "1"]
[TimeControl "5400+30"]

1. e4 {[%emt 0:01:00]} e6 {[%emt 0:01:00]} 2. d4 {[%emt 0:00:30]} d5 {[%emt 0:00:30]} 3. e5 {[%emt 0:00:30]} c5 {[%emt 0:00:30]} 4. c3 {[%emt 0:00:30]} Qb6 {[%emt 0:00:00]} 5. Nf3 {[%emt 0:00:00]} Bd7 {[%emt 0:00:00]} 6. Na3 {[%emt 0:03:00]} cxd4 {[%emt 0:00:00]} 7. cxd4 {[%emt 0:01:30]} Bb4+ {[%emt 0:01:00]} 8. Bd2 {[%emt 0:01:30]} Ne7 {[%emt 0:01:30]} 9. Bd3 {[%emt 0:02:30]} Nbc6 {[%emt 0:00:00]} 10. Nc2 {[%emt 0:01:30]} Bxd2+ {[%emt 0:01:00]} 11. Qxd2 {[%emt 0:00:30]} Na5 {[%emt 0:01:30]} 12. Na3 {[%emt 0:12:30]} Nec6 {[%emt 0:05:30]} 13. Nb5 {[%emt 0:04:30]} Nxe5 {[%emt 0:02:30]} 14. Nd6+ {[%emt 0:04:30]} Qxd6 {[%emt 0:00:30]} 15. dxe5 {[%emt 0:00:00]} Qb6 {[%emt 0:00:30]} 16. b4 {[%emt 0:04:00]} Nc6 {[%emt 0:04:30]} 17. Rb1 {[%emt 0:02:30]} h6 {[%emt 0:02:30]} 18. Bc2 {[%emt 0:01:30]} Qc7 {[%emt 0:01:30]} 19. Qe2 {[%emt 0:04:30]} Rc8 {[%emt 0:00:30]} 20. Bd3 {[%emt 0:07:30]} Nd4 {[%emt 0:08:30]} 21. Nxd4 {[%emt 0:00:30]} Qc3+ {[%emt 0:00:00]} 22. Qd2 {[%emt 0:00:30]} Qxd4 {[%emt 0:00:00]} 23. Qe2 {[%emt 0:00:30]} Qc3+ {[%emt 0:00:30]} 24. Kf1 {[%emt 0:02:30]} O-O {[%emt 0:00:30]} 25. g3 {[%emt 0:01:30]} f6 {[%emt 0:04:30]} 26. exf6 {[%emt 0:01:30]} Qxf6 {[%emt 0:00:30]} 27. Kg2 {[%emt 0:01:30]} e5 {[%emt 0:00:30]} 28. f3 {[%emt 0:01:30]} Qe6 {[%emt 0:02:30]} 29. Rhf1 {[%emt 0:02:30]} Rce8 {[%emt 0:08:30]} 30. Rbc1 {[%emt 0:03:30]} a6 {[%emt 0:00:30]} 31. Rfe1 {[%emt 0:08:30]} Qh3+ {[%emt 0:03:30]} 32. Kg1 {[%emt 0:01:30]} Qh5 {[%emt 0:01:30]} 33. g4 {[%emt 0:01:30]} Qg5 {[%emt 0:02:30]} 34. Rc5 {[%emt 0:06:44]} Kh8 {[%emt 0:09:30]} 35. Rxd5 {[%emt 0:02:27]} Bc6 {[%emt 0:00:30]} 36. Rxe5 {[%emt 0:00:12]} Rxe5 {[%emt 0:00:30]} 37. Qxe5 {[%emt 0:00:07]} Qd2 {[%emt 0:01:30]} 38. Qe7 {[%emt 0:02:47]} Rg8 {[%emt 0:00:30]} 39. Qe2 {[%emt 0:01:08]} Qxb4 {[%emt 0:00:30]} 40. Rf1 {[%emt 0:03:42]} Qd4+ {[%emt 0:00:30]} 41. Rf2 {[%emt 0:00:54]} Re8 {[%emt 0:00:30]} 42. Qd2 {[%emt 0:01:10]} Bxf3 {[%emt 0:01:30]} 43. Bf5 {[%emt 0:01:20]} Qb6 {[%emt 0:00:30]} 44. Kf1 {[%emt 0:01:09]} Rd8 {[%emt 0:01:30]} 45. Qxd8+ {[%emt 0:03:16]} Qxd8 {[%emt 0:00:30]} 46. Rxf3 {[%emt 0:00:00]} Qd1+ {[%emt 0:01:30]} 47. Kg2 {[%emt 0:00:00]} Qd2+ {[%emt 0:00:30]} 48. Rf2 {[%emt 0:00:06]} Qd5+ {[%emt 0:00:30]} 49. Kg3 {[%emt 0:00:10]} g6 {[%emt 0:00:30]} 50. Bb1 {[%emt 0:01:25]} Kg7 {[%emt 0:00:30]} 51. h3 {[%emt 0:00:53]} b5 {[%emt 0:00:30]} 52. Kh2 {[%emt 0:00:24]} a5 {[%emt 0:00:30]} 53. Kg3 {[%emt 0:01:39]} b4 {[%emt 0:01:30]} 54. Kh2 {[%emt 0:00:03]} a4 {[%emt 0:00:30]} 55. Re2 {[%emt 0:01:17]} Qd1 {[%emt 0:00:30]} 56. Rb2 {[%emt 0:00:32]} b3 {[%emt 0:00:30]} 57. Be4 {[%emt 0:01:12]} Qd4 {[%emt 0:01:30]} 58. Re2 {[%emt 0:00:07]} bxa2 {[%emt 0:00:00]} 59. h4 {[%emt 0:02:19]} a1=Q {[%emt 0:00:00]} 0-1

[Event "Turkish Youth Championship 2024"]
[Site "Samsun"]
[Date "2024.05.21"]
[Round "5"]
[White "Kesici, Eyup Can"]
[Black "Apaydin, Mehmet Kagan"]
[Result "1/2-1/2"]
[ECO "D00"]
[WhiteElo "1539"]
[BlackElo "1650"]
[Annotator "NA RC"]
[PlyCount "128"]
[EventDate "2024.05.18"]
[EventType "swiss"]
[EventCountry "TUR"]
[SourceTitle "playchess.com"]
[Source "ChessBase"]
[SourceQuality "1"]
[TimeControl "5400+30"]

1. d4 {[%emt 0:02:00]} d5 {[%emt 0:01:00]} 2. e3 {[%emt 0:00:00]} Nf6 {[%emt 0:00:30]} 3. Bd3 {[%emt 0:00:00]} g6 {[%emt 0:00:30]} 4. Nd2 {[%emt 0:00:30]} Bg7 {[%emt 0:00:00]} 5. f4 {[%emt 0:00:30]} c5 {[%emt 0:00:00]} 6. c3 {[%emt 0:00:30]} Bf5 {[%emt 0:07:30]} 7. Bxf5 {[%emt 0:00:30]} gxf5 {[%emt 0:00:00]} 8. Ndf3 {[%emt 0:03:30]} Nc6 {[%emt 0:04:00]} 9. Qa4 {[%emt 0:01:30]} Ne4 {[%emt 0:02:30]} 10. Ne5 {[%emt 0:06:30]} Bxe5 {[%emt 0:03:30]} 11. fxe5 {[%emt 0:00:30]} e6 {[%emt 0:01:30]} 12. Nf3 {[%emt 0:00:30]} f6 {[%emt 0:10:30]} 13. Qb5 {[%emt 0:03:30]} Qb6 {[%emt 0:05:30]} 14. Qxb6 {[%emt 0:01:30]} axb6 {[%emt 0:00:30]} 15. exf6 {[%emt 0:00:30]} Kf7 {[%emt 0:07:30]} 16. Rg1 {[%emt 0:04:30]} Rhg8 {[%emt 0:01:30]} 17. Bd2 {[%emt 0:01:30]} Na5 {[%emt 0:07:30]} 18. Ne5+ {[%emt 0:07:30]} Kxf6 {[%emt 0:00:30]} 19. O-O-O {[%emt 0:15:30]} c4 {[%emt 0:04:30]} 20. Be1 {[%emt 0:02:30]} Nc6 {[%emt 0:03:30]} 21. Bh4+ {[%emt 0:00:30]} Ng5 {[%emt 0:02:30]} 22. Bxg5+ {[%emt 0:08:30]} Rxg5 {[%emt 0:02:30]} 23. Nxc6 {[%emt 0:03:30]} bxc6 {[%emt 0:00:00]} 24. a3 {[%emt 0:00:30]} Rag8 {[%emt 0:01:00]} 25. Rd2 {[%emt 0:01:30]} Rh5 {[%emt 0:00:30]} 26. g3 {[%emt 0:00:30]} Rh3 {[%emt 0:02:30]} 27. Rf2 {[%emt 0:01:30]} Rg4 {[%emt 0:01:30]} 28. Rgg2 {[%emt 0:01:30]} c5 {[%emt 0:04:30]} 29. Rf4 {[%emt 0:07:30]} Rxf4 {[%emt 0:00:30]} 30. exf4 {[%emt 0:00:30]} h5 {[%emt 0:00:30]} 31. a4 {[%emt 0:06:34]} cxd4 {[%emt 0:00:30]} 32. cxd4 {[%emt 0:00:26]} h4 {[%emt 0:00:30]} 33. Kd2 {[%emt 0:00:30]} hxg3 {[%emt 0:00:30]} 34. hxg3 {[%emt 0:00:30]} Rh1 {[%emt 0:00:30]} 35. Kc3 {[%emt 0:00:00]} Rd1 {[%emt 0:00:30]} 36. Kb4 {[%emt 0:17:11]} Rd3 {[%emt 0:00:00]} 37. Kb5 {[%emt 0:00:51]} Rb3+ {[%emt 0:00:00]} 38. Kc6 {[%emt 0:00:03]} Rb4 {[%emt 0:00:30]} 39. Kd6 {[%emt 0:00:32]} Rxa4 {[%emt 0:00:30]} 40. Re2 {[%emt 0:00:13]} Rb4 {[%emt 0:02:30]} 41. Rxe6+ {[%emt 0:00:07]} Kf7 {[%emt 0:00:30]} 42. Re2 {[%emt 0:00:56]} Rb3 {[%emt 0:00:30]} 43. Ke5 {[%emt 0:00:26]} b5 {[%emt 0:02:30]} 44. Kxf5 {[%emt 0:01:01]} Rxg3 {[%emt 0:00:30]} 45. Ke5 {[%emt 0:00:17]} Rf3 {[%emt 0:00:30]} 46. Kxd5 {[%emt 0:02:49]} Rxf4 {[%emt 0:00:30]} 47. Kc5 {[%emt 0:00:15]} Rf5+ {[%emt 0:00:30]} 48. Re5 {[%emt 0:00:27]} Rf4 {[%emt 0:09:39]} 49. d5 {[%emt 0:00:22]} Rf2 {[%emt 0:00:04]} 50. Kxb5 {[%emt 0:00:54]} Rxb2+ {[%emt 0:00:09]} 51. Kxc4 {[%emt 0:00:00]} Kf6 {[%emt 0:00:50]} 52. Re6+ {[%emt 0:00:00]} Kf7 {[%emt 0:00:07]} 53. Kc5 {[%emt 0:00:16]} Ra2 {[%emt 0:00:37]} 54. Kb6 {[%emt 0:01:35]} Rd2 {[%emt 0:03:23]} 55. Kc6 {[%emt 0:00:19]} Rc2+ {[%emt 0:00:23]} 56. Kd7 {[%emt 0:00:11]} Ra2 {[%emt 0:00:59]} 57. Rc6 {[%emt 0:00:37]} Ra8 {[%emt 0:01:51]} 58. d6 {[%emt 0:01:08]} Ra7+ {[%emt 0:01:25]} 59. Rc7 {[%emt 0:00:16]} Ra6 {[%emt 0:03:31]} 60. Kc8+ {[%emt 0:01:17]} Kf8 {[%emt 0:03:15]} 61. d7 {[%emt 0:00:07]} Ra8+ {[%emt 0:01:32]} 62. Kb7 {[%emt 0:00:40]} Rd8 {[%emt 0:00:12]} 63. Rc8 {[%emt 0:00:00]} Ke7 {[%emt 0:00:26]} 64. Kc7 {[%emt 0:00:00]} Rxd7+ {[%emt 0:00:00]} 1/2-1/2